bitfinex/quotes_BTCUSD_20230405
["timestamp","ask_amount","ask_price","bid_price","bid_amount"]
[1680710355867,0.39451712,28085.0,28082.0,0.12111992]
[1680710356112,0.39451712,28085.0,28083.0,0.10504633]
[1680710356771,0.49678737,28085.0,28079.0,0.18076763]
[1680710356980,0.49678737,28085.0,28073.0,0.10337508]
[1680710356981,0.2142,28079.0,28073.0,0.10337508]
[1680710357195,0.81208304,28084.0,28070.0,0.1216]
[1680710357196,0.2522,28074.0,28070.0,0.1216]
[1680710357404,0.2522,28074.0,28064.0,0.21017623]
[1680710357405,1.79655437,28073.0,28064.0,0.0216]
[1680710357624,1.79655437,28073.0,28062.0,0.0216]
[1680710357625,0.2142,28069.0,28062.0,0.0216]
[1680710357850,0.0843,28064.0,28063.0,0.31918342]
[1680710358058,0.0843,28064.0,28063.0,0.32657063]
[1680710358059,0.38750756,28064.0,28063.0,0.32657063]
[1680710358274,0.00018,28064.0,28063.0,0.35471056]
[1680710358495,0.00018,28065.0,28062.0,0.42941158]
[1680710358753,0.00018,28066.0,28062.0,0.37631056]
[1680710358970,0.01487012,28067.0,28063.0,0.01734056]
[1680710359400,0.01371769,28064.0,28063.0,0.01734056]
[1680710359609,0.0601741,28064.0,28063.0,0.01734056]
[1680710360226,0.58610856,28064.0,28063.0,0.01734056]
[1680710360435,0.59478856,28064.0,28063.0,0.01734056]
[1680710360856,0.60342374,28064.0,28063.0,0.01734056]
[1680710361102,0.69585781,28064.0,28063.0,0.01734056]
[1680710361507,0.69784049,28064.0,28063.0,0.01734056]
[1680710361926,0.69784049,28064.0,28062.0,0.0216]
[1680710362129,0.57155956,28063.0,28062.0,0.0216]
[1680710362442,0.1,28062.0,28059.0,6e-05]
[1680710362620,0.46191956,28061.0,28051.0,0.001485]
[1680710362835,0.46191956,28061.0,28052.0,0.35841447]
[1680710362836,0.0838,28055.0,28052.0,0.35841447]
[1680710363051,0.00018,28057.0,28051.0,0.20415732]
[1680710363271,0.00012,28058.0,28053.0,0.1]
[1680710363487,0.0182143,28057.0,28053.0,0.1]
[1680710363703,0.0182143,28057.0,28054.0,0.026873]
[1680710363935,0.0212882,28056.0,28052.0,0.43006258]
[1680710364145,0.16318501,28056.0,28053.0,0.026667]
[1680710364351,0.0212882,28056.0,28053.0,0.026847]
[1680710364585,0.0212882,28056.0,28052.0,0.42988258]
[1680710364586,0.0212882,28056.0,28052.0,0.00018]
[1680710364795,0.0212882,28056.0,28051.0,0.001665]
[1680710365002,0.16318501,28056.0,28051.0,0.001665]
[1680710365209,0.14189681,28055.0,28051.0,0.001665]
[1680710365418,0.010693,28054.0,28051.0,0.001665]
[1680710365617,0.59160037,28055.0,28051.0,0.001665]
[1680710365827,0.59160037,28055.0,28051.0,0.001485]
[1680710365828,0.032913,28054.0,28051.0,0.001485]
[1680710366701,0.043606,28054.0,28051.0,0.001485]
[1680710366915,0.032703,28053.0,28051.0,0.001485]
[1680710367138,0.02123535,28054.0,28051.0,0.001485]
[1680710367566,0.032837,28053.0,28051.0,0.001485]
[1680710367988,0.05196291,28054.0,28052.0,0.01789528]
[1680710368206,0.033602,28053.0,28052.0,0.01789528]
[1680710368494,0.14960527,28053.0,28052.0,0.01789528]
[1680710368739,0.42001583,28053.0,28052.0,0.01789528]
[1680710369738,0.50469456,28053.0,28052.0,0.01789528]
[1680710369974,0.62473843,28053.0,28052.0,0.01789528]
[1680710370279,0.73703027,28053.0,28052.0,0.01789528]
[1680710370523,0.63703027,28053.0,28052.0,0.01789528]
[1680710371014,0.52473843,28053.0,28052.0,0.01789528]
[1680710372880,0.52473843,28053.0,28051.0,0.001485]
[1680710373092,0.38483556,28052.0,28051.0,0.001485]
[1680710373368,0.39552956,28052.0,28051.0,0.001485]
[1680710373612,0.41609503,28052.0,28051.0,0.001485]
[1680710374348,0.01771747,28053.0,28051.0,0.001485]
[1680710374817,0.010693,28054.0,28051.0,0.001485]
[1680710374818,0.0176814,28052.0,28051.0,0.001485]
[1680710375721,0.1126754,28052.0,28051.0,0.001485]
[1680710375964,0.15802964,28052.0,28051.0,0.001485]
[1680710376212,0.5127402,28052.0,28051.0,0.001485]
[1680710376451,0.49933396,28052.0,28051.0,0.001485]
[1680710376690,0.48165256,28052.0,28051.0,0.001485]
[1680710376922,0.50216889,28052.0,28051.0,0.001485]
[1680710377127,0.48165256,28052.0,28051.0,0.001485]
[1680710377335,0.54197462,28052.0,28051.0,0.001485]
[1680710378393,0.55065462,28052.0,28051.0,0.001485]
[1680710378788,0.50384855,28052.0,28051.0,0.001485]
[1680710379006,0.48183256,28052.0,28051.0,0.001485]
[1680710379428,0.48165256,28052.0,28051.0,0.001485]
[1680710379636,0.48183256,28052.0,28051.0,0.001485]
[1680710380257,0.50336158,28052.0,28051.0,0.001485]
[1680710380462,0.55908502,28052.0,28051.0,0.001485]
[1680710380906,0.4,28036.0,28032.0,0.0216]
[1680710381124,0.4,28036.0,28030.0,0.00156]
[1680710381125,0.1689,28034.0,28030.0,0.00156]
[1680710381353,0.065299,28033.0,28030.0,0.0015]
[1680710381648,0.17838,28031.0,28030.0,0.0015]
[1680710381865,0.00021,28033.0,28031.0,2.17159702]
[1680710382079,0.021399,28039.0,28032.0,0.026781]
[1680710382298,0.02352707,28035.0,28032.0,0.1]
[1680710382520,0.031581,28034.0,28031.0,0.00018]
[1680710382735,0.35492056,28038.0,28031.0,0.00018]
[1680710382736,0.01941232,28033.0,28031.0,0.00018]
[1680710383176,0.02296864,28033.0,28031.0,0.00018]
[1680710383386,0.3776792,28033.0,28031.0,0.00018]
[1680710383818,0.032472,28032.0,28031.0,0.00018]
[1680710384036,0.032472,28032.0,28007.0,0.00024]
[1680710384037,0.53030037,28032.0,28029.0,0.00018]
[1680710384260,0.53030037,28032.0,28015.0,0.03493975]
[1680710384261,0.0848,28030.0,28025.0,0.31825147]
[1680710384472,0.17204181,28029.0,28025.0,0.44056498]
[1680710384685,0.51043574,28031.0,28025.0,0.44056498]
[1680710385122,0.131016,28030.0,28025.0,0.44056498]
[1680710385379,0.04217,28029.0,28025.0,0.00018]
[1680710385564,0.032573,28028.0,28025.0,0.34632268]
[1680710385777,0.039685,28027.0,28025.0,0.00018]
[1680710385989,0.38644356,28026.0,28025.0,0.00018]
[1680710386324,0.00021,28031.0,28025.0,0.00018]
[1680710386539,1.2837272,28034.0,28025.0,0.0848]
[1680710386753,1.2837272,28033.0,28027.0,0.0848]
[1680710386972,0.02014195,28033.0,28027.0,0.00018]
[1680710387181,0.35471056,28032.0,28027.0,0.00018]
[1680710387411,0.04334,28031.0,28026.0,0.00018]
[1680710387625,0.4409763,28030.0,28026.0,0.00012]
[1680710387837,0.0621,28029.0,28026.0,0.00018]
[1680710388056,0.0621,28029.0,28025.0,0.00018]
[1680710388057,0.43881056,28027.0,28025.0,0.00018]
[1680710388269,0.43881056,28027.0,28019.0,0.45004664]
[1680710388270,0.105802,28026.0,28023.0,0.00018]
[1680710388450,0.105802,28026.0,28022.0,0.00012]
[1680710388451,0.52807337,28025.0,28022.0,0.00012]
[1680710388692,0.063014,28024.0,28021.0,0.00018]
[1680710388906,0.38833456,28023.0,28021.0,0.00018]
[1680710389123,0.031154,28022.0,28021.0,0.00018]
[1680710389367,0.0643982,28022.0,28021.0,0.00018]
[1680710389783,0.00021,28027.0,28021.0,0.00018]
[1680710389966,0.01983203,28023.0,28019.0,0.3782327]
[1680710390185,0.01983203,28023.0,28019.0,0.3784127]
[1680710390405,0.01983203,28023.0,28021.0,0.41518296]
[1680710390624,0.02058558,28023.0,28021.0,0.00018]
[1680710390834,0.02058558,28023.0,28021.0,0.3476858]
[1680710391051,0.02842259,28024.0,28021.0,0.3476858]
[1680710391257,0.0238278,28024.0,28021.0,0.3476858]
[1680710391726,0.010704,28026.0,28021.0,0.3476858]
[1680710391936,0.35471056,28025.0,28021.0,0.3476858]
[1680710392144,0.0324282,28025.0,28022.0,0.38178569]
[1680710392359,0.0324282,28025.0,28022.0,0.38196569]
[1680710392582,0.35471056,28023.0,28022.0,0.00018]
[1680710392789,0.42566356,28023.0,28019.0,0.34763689]
[1680710393050,0.03162,28022.0,28019.0,0.34763689]
[1680710393252,0.36541656,28021.0,28019.0,0.34763689]
[1680710393461,0.35471056,28021.0,28020.0,0.33316268]
[1680710393686,0.0234568,28025.0,28022.0,0.43592379]
[1680710393687,0.010705,28024.0,28022.0,0.43592379]
[1680710393900,0.042816,28027.0,28022.0,0.43125254]
[1680710393901,0.02085016,28027.0,28022.0,0.43125254]
[1680710394117,0.01904985,28026.0,28023.0,0.025595]
[1680710394347,0.02896252,28025.0,28023.0,0.00018]
[1680710394554,0.02140944,28024.0,28022.0,0.45879952]
[1680710394761,0.02140944,28024.0,28023.0,0.02697]
[1680710394966,0.02140944,28024.0,28023.0,0.02715]
[1680710395410,0.4934,28028.0,28023.0,0.02715]
[1680710395622,0.02312289,28026.0,28023.0,0.38038419]
[1680710396042,0.02312289,28026.0,28023.0,0.00018]
[1680710396250,0.35471056,28027.0,28023.0,0.00018]
[1680710396251,0.02411791,28024.0,28023.0,0.00018]
[1680710396460,0.02411791,28024.0,28023.0,0.028347]
[1680710396671,0.02411791,28024.0,28023.0,0.00018]
[1680710397142,0.35471056,28027.0,28023.0,0.00018]
[1680710397355,0.02160539,28026.0,28023.0,0.3699738]
[1680710398096,0.35471056,28027.0,28023.0,0.3699738]
[1680710398318,0.02155429,28027.0,28023.0,0.40875518]
[1680710398566,0.01801112,28026.0,28024.0,0.026054]
[1680710398738,0.01801112,28026.0,28024.0,0.026234]
[1680710399163,0.01801112,28026.0,28022.0,0.086284]
[1680710399365,0.01801112,28026.0,28023.0,0.017414]
[1680710399567,0.15849633,28029.0,28023.0,0.017414]
[1680710399728,0.1568011,28029.0,28024.0,0.3464251]
[1680710399930,0.1673541,28029.0,28024.0,0.3466051]
[1680710400341,0.1673541,28029.0,28024.0,0.45162818]
[1680710400564,0.13424494,28029.0,28024.0,0.50731798]
[1680710401249,0.12375194,28029.0,28024.0,0.50375888]
[1680710401456,0.62035931,28029.0,28024.0,0.44806908]
[1680710401679,0.35471056,28028.0,28024.0,0.42894409]
[1680710401883,0.010704,28027.0,28026.0,1.2099]
[1680710402099,0.48335739,28027.0,28026.0,1.2099]
[1680710402308,0.48335639,28027.0,28026.0,1.2099]
[1680710403946,0.47265339,28027.0,28026.0,1.2099]
[1680710404360,0.48335639,28027.0,28026.0,1.2099]
[1680710406045,0.53169203,28027.0,28026.0,1.2099]
[1680710406388,0.48335639,28027.0,28026.0,1.2099]
[1680710407245,0.48335639,28027.0,28024.0,0.00018]
[1680710407246,0.36562356,28027.0,28025.0,6e-05]
[1680710407462,0.39333556,28026.0,28020.0,0.00018]
[1680710407669,0.19228981,28025.0,28020.0,0.36445233]
[1680710407890,0.35471056,28024.0,28023.0,1.0997]
[1680710408103,0.35492056,28024.0,28023.0,1.0997]
[1680710408314,0.36562556,28024.0,28023.0,1.0997]
[1680710408736,0.41387156,28024.0,28023.0,1.0997]
[1680710408954,1.69791968,28024.0,28023.0,1.0997]
[1680710409619,1.80006283,28024.0,28021.0,0.00018]
[1680710409832,1.43267685,28023.0,28018.0,0.00283672]
[1680710410054,0.56680937,28022.0,28018.0,0.00283672]
[1680710410272,0.18292081,28021.0,28018.0,0.00283672]
[1680710410497,0.40636756,28020.0,28018.0,0.00283672]
[1680710410738,1.32511915,28019.0,28018.0,0.00283672]
[1680710410953,1.32511915,28019.0,28018.0,0.17749737]
[1680710410954,1.63878971,28019.0,28018.0,0.17749737]
[1680710411169,0.39383456,28019.0,28018.0,0.00301672]
[1680710411391,1.63872025,28019.0,28018.0,0.00283672]
[1680710411610,1.69839525,28019.0,28018.0,0.00283672]
[1680710412031,1.68768825,28019.0,28018.0,0.00283672]
[1680710412222,1.68989525,28019.0,28018.0,0.00283672]
[1680710412726,1.81322418,28019.0,28018.0,0.00283672]
[1680710412942,1.82172418,28019.0,28018.0,0.00283672]
[1680710413387,1.69839525,28019.0,28018.0,0.00283672]
[1680710413617,1.82769388,28019.0,28018.0,0.00283672]
[1680710413833,1.69839525,28019.0,28018.0,0.00283672]
[1680710414045,1.82496744,28019.0,28018.0,0.00283672]
[1680710414258,1.69839525,28019.0,28018.0,0.00283672]
[1680710414469,1.96368224,28019.0,28018.0,0.00283672]
[1680710414920,1.9946884,28019.0,28018.0,0.00283672]
[1680710415370,1.8162384,28019.0,28018.0,0.00283672]
[1680710416098,1.9005384,28019.0,28018.0,0.00283672]
[1680710416742,2.1147384,28019.0,28018.0,0.00283672]
[1680710418061,2.1148584,28019.0,28018.0,3.672e-05]
[1680710418280,2.1148584,28019.0,28013.0,0.01]
[1680710418281,0.1,28018.0,28013.0,0.01]
[1680710418500,0.53319056,28015.0,28013.0,0.01]
[1680710418709,0.15172,28014.0,28013.0,0.01]
[1680710418937,0.50643056,28014.0,28013.0,0.01]
[1680710419152,0.51493056,28014.0,28013.0,0.01]
[1680710419381,0.53277371,28014.0,28013.0,0.01]
[1680710419610,0.51493056,28014.0,28013.0,0.01]
[1680710420097,1.799244,28014.0,28013.0,0.01]
[1680710420322,2.01332709,28014.0,28013.0,0.01]
[1680710420541,1.79912709,28014.0,28013.0,0.01]
[1680710421208,1.688536,28014.0,28013.0,0.01]
[1680710421418,1.699244,28014.0,28013.0,0.01]
[1680710421841,1.69929597,28014.0,28013.0,0.01]
[1680710422065,0.41493056,28014.0,28013.0,0.01]
[1680710422516,0.54466079,28014.0,28013.0,0.00755177]
[1680710422725,0.550627,28014.0,28013.0,0.00755177]
[1680710422939,0.56995939,28014.0,28013.0,0.00755177]
[1680710423157,0.52844368,28014.0,28013.0,0.00755177]
[1680710423370,0.52666276,28014.0,28013.0,0.00755177]
[1680710424053,0.52678276,28014.0,28010.0,0.28983975]
[1680710424267,0.52217064,28013.0,28009.0,6e-05]
[1680710424489,0.66406745,28013.0,28008.0,0.50966682]
[1680710426498,0.239057,28013.0,28011.0,0.018797]
[1680710426930,0.239057,28013.0,28011.0,0.018857]
[1680710428023,0.239057,28013.0,28011.0,6e-05]
[1680710428229,0.239057,28013.0,28010.0,0.36053465]
[1680710428441,0.239057,28013.0,28011.0,0.018898]
[1680710428659,0.0003,28015.0,28012.0,0.0844]
[1680710428871,0.03595085,28017.0,28012.0,0.0844]
[1680710428872,0.24556854,28014.0,28012.0,0.0844]
[1680710429095,0.0003,28015.0,28013.0,0.104024]
[1680710429304,0.310707,28019.0,28014.0,0.104435]
[1680710429305,0.28331724,28016.0,28014.0,0.104435]
[1680710429513,0.25822128,28015.0,28014.0,0.0845]
[1680710429713,0.25822128,28015.0,28014.0,0.102629]
[1680710430342,0.25822128,28015.0,28014.0,0.102689]
[1680710430560,0.0003,28017.0,28014.0,0.102689]
[1680710430774,0.27577614,28016.0,28014.0,0.0845]
[1680710431211,0.27577614,28016.0,28015.0,0.018186]
[1680710431691,0.27577614,28016.0,28014.0,0.08468]
[1680710432323,0.00024909,28018.0,28015.0,0.01936]
[1680710432532,0.23743762,28018.0,28015.0,0.31341213]
[1680710432783,0.2820956,28017.0,28015.0,0.03998921]
[1680710432998,0.2820956,28017.0,28014.0,0.08468]
[1680710433234,0.2928026,28017.0,28014.0,0.08508]
[1680710433451,0.2820956,28017.0,28016.0,0.0844]
[1680710433659,0.2820956,28017.0,28016.0,0.103326]
[1680710433867,0.2820956,28017.0,28016.0,0.0844]
[1680710434079,0.2928026,28017.0,28014.0,0.08508]
[1680710434293,0.2928026,28017.0,28014.0,0.0849]
[1680710434506,0.32185231,28017.0,28014.0,0.0849]
[1680710435316,0.010707,28017.0,28014.0,0.0849]
[1680710435523,0.26131717,28017.0,28014.0,0.0849]
[1680710435728,0.29830288,28017.0,28014.0,0.0849]
[1680710436147,0.29830288,28017.0,28015.0,0.0337337]
[1680710436362,0.29838798,28016.0,28015.0,0.0337337]
[1680710436885,0.00024909,28018.0,28015.0,0.0337337]
[1680710437095,0.25102012,28016.0,28015.0,0.0337337]
[1680710437306,0.67093929,28018.0,28015.0,0.00018]
[1680710437526,0.31597964,28018.0,28014.0,0.52930428]
[1680710437963,0.30527264,28018.0,28016.0,0.06489932]
[1680710438384,0.61680456,28017.0,28013.0,0.00018]
[1680710438608,0.35471056,28014.0,28009.0,0.00018]
[1680710438816,0.22122881,28013.0,28009.0,0.00018]
[1680710439090,0.35471056,28010.0,28009.0,0.00018]
[1680710439294,0.58007837,28010.0,28008.0,0.00018]
[1680710439510,0.0085,28009.0,28008.0,0.00018]
[1680710439716,0.37392056,28009.0,28008.0,6e-05]
[1680710439934,0.37392056,28009.0,28008.0,0.00018]
[1680710440351,0.77955143,28009.0,28008.0,0.00018]
[1680710440561,0.42345462,28009.0,28007.0,0.00018]
[1680710440767,0.25250605,28012.0,28009.0,0.00831007]
[1680710440974,0.35471056,28010.0,28009.0,0.09321007]
[1680710441216,0.3652992,28010.0,28009.0,0.00831007]
[1680710441603,0.3652992,28010.0,28007.0,0.08446]
[1680710441604,0.3652992,28010.0,28007.0,0.43930605]
[1680710441847,0.67053353,28010.0,28007.0,0.60753347]
[1680710442058,0.67053353,28010.0,28007.0,0.5235673]
[1680710442276,0.67053353,28010.0,28008.0,0.02123579]
[1680710443371,1.19690256,28009.0,28005.0,0.0216]
[1680710443599,0.35471056,28007.0,28005.0,0.0216]
[1680710443818,0.03936,28006.0,28005.0,0.0216]
[1680710444035,0.39431965,28006.0,28005.0,0.18693746]
[1680710444280,0.35495965,28006.0,28005.0,0.0216]
[1680710444491,0.00024909,28006.0,28005.0,0.0216]
[1680710444708,0.35667534,28007.0,28005.0,0.0216]
[1680710444709,0.35692443,28007.0,28005.0,0.0216]
[1680710444931,0.35471056,28006.0,28005.0,0.0216]
[1680710445157,0.68348684,28006.0,28005.0,0.0216]
[1680710445364,0.69419784,28006.0,28005.0,0.0216]
[1680710445618,0.68348684,28006.0,28005.0,0.0216]
[1680710450766,0.69419784,28006.0,28005.0,0.0216]
[1680710451405,1.11420262,28006.0,28005.0,0.0216]
[1680710451826,1.11384513,28006.0,28005.0,0.0216]
[1680710452103,1.11409422,28006.0,28005.0,0.0216]
[1680710452319,1.15694122,28006.0,28005.0,0.0216]
[1680710452742,1.08752144,28006.0,28005.0,0.0216]
[1680710453407,1.10536459,28006.0,28005.0,0.0216]
[1680710454500,1.08752144,28006.0,28005.0,0.0216]
[1680710454929,1.04467444,28006.0,28005.0,0.0216]
[1680710455352,0.4341298,28005.0,28002.0,6e-05]
[1680710455566,0.37392256,28004.0,28000.0,0.002222]
[1680710455776,0.51581937,28004.0,28000.0,0.002222]
[1680710456174,0.040101,28003.0,28000.0,0.002222]
[1680710456411,0.36542356,28002.0,28000.0,0.002222]
[1680710456593,0.36542356,28002.0,28000.0,0.02912491]
[1680710456810,0.36542356,28002.0,28000.0,0.002402]
[1680710457017,0.38685056,28002.0,28000.0,0.002402]
[1680710457236,0.049005,28001.0,28000.0,0.002222]
[1680710457448,0.7851126,28001.0,28000.0,0.002222]
[1680710458545,0.78536169,28001.0,28000.0,0.002222]
[1680710459162,1.04888783,28001.0,28000.0,0.002222]
[1680710459369,0.95392366,28001.0,28000.0,0.002222]
[1680710459778,1.02914375,28001.0,28000.0,0.002222]
[1680710459947,0.41442256,28001.0,28000.0,0.002222]
[1680710460171,0.86066509,28001.0,28000.0,0.002222]
[1680710460367,0.88180953,28001.0,28000.0,0.002222]
[1680710460605,0.88205862,28001.0,28000.0,0.002222]
[1680710460937,0.88180953,28001.0,28000.0,0.00202668]
[1680710461355,0.36077622,28000.0,27997.0,0.1011711]
[1680710461566,0.35471056,27999.0,27997.0,0.02076311]
[1680710462223,0.36542456,27999.0,27995.0,0.10658]
[1680710462435,0.0085,27998.0,27995.0,0.0215]
[1680710462605,0.75773485,27997.0,27995.0,0.0215]
[1680710462969,0.35459448,27997.0,27995.0,0.1064]
[1680710463175,0.35459448,27997.0,27995.0,0.10646]
[1680710463405,0.35459448,27997.0,27996.0,0.0849]
[1680710463621,0.00024909,27998.0,27997.0,0.018829]
[1680710463832,0.41789409,28001.0,27997.0,0.103729]
[1680710464034,0.37227414,28000.0,27999.0,0.0849]
[1680710464259,0.35495965,28000.0,27999.0,0.018339]
[1680710464465,0.44364961,27999.0,27998.0,0.018522]
[1680710464602,0.00024909,28000.0,27998.0,0.11245092]
[1680710464807,0.35471056,28000.0,27999.0,0.103028]
[1680710465040,0.35471056,28000.0,27999.0,0.11608589]
[1680710465453,0.35495965,28000.0,27999.0,0.11733689]
[1680710465825,0.35495965,28000.0,27999.0,0.104279]
[1680710466028,0.0213258,28001.0,27999.0,0.23172666]
[1680710466205,0.02114444,28001.0,28000.0,0.103766]
[1680710466425,0.02114444,28001.0,28000.0,0.53438137]
[1680710466634,0.02114444,28001.0,28000.0,0.86597656]
[1680710466635,0.00634444,28001.0,28000.0,0.86597656]
[1680710466854,0.00018136,28007.0,28001.0,0.1]
[1680710467082,0.00018136,28007.0,28006.0,0.0844]
[1680710467494,0.00018136,28007.0,28006.0,0.102671]
[1680710467696,0.00018136,28007.0,28006.0,0.21069201]
[1680710467913,0.35343924,28010.0,28006.0,0.21069201]
[1680710467914,0.00018136,28008.0,28006.0,0.21069201]
[1680710468130,0.00018136,28008.0,28007.0,0.1247192]
[1680710468763,0.34620342,28011.0,28007.0,0.1247192]
[1680710468976,0.34638478,28011.0,28008.0,0.0844]
[1680710469215,0.34638478,28011.0,28009.0,0.01054692]
[1680710469907,0.34638478,28011.0,28009.0,0.09544692]
[1680710470110,0.34638478,28011.0,28009.0,0.0849]
[1680710470314,0.00018136,28011.0,28009.0,0.16908104]
[1680710471393,0.00018136,28011.0,28010.0,0.019226]
[1680710471601,0.00018136,28011.0,28010.0,0.11122216]
[1680710471813,0.36852058,28012.0,28010.0,0.11122216]
[1680710472247,0.36852058,28012.0,28007.0,0.0849]
[1680710472457,0.36852058,28012.0,28008.0,0.20804954]
[1680710472458,0.51041739,28012.0,28008.0,0.20804954]
[1680710472671,0.45415163,28011.0,28009.0,0.02929495]
[1680710472879,0.45433299,28011.0,28009.0,0.02929495]
[1680710473278,0.45433299,28011.0,28008.0,0.20804954]
[1680710473510,0.00018136,28011.0,28009.0,0.11159846]
[1680710473713,0.34779176,28013.0,28009.0,0.11159846]
[1680710474123,0.39465712,28012.0,28009.0,0.11159846]
[1680710474342,0.81464339,28011.0,28004.0,0.56008]
[1680710474553,0.35471056,28000.0,27996.0,0.35242375]
[1680710474786,0.35471056,28000.0,27989.0,0.10879034]
[1680710474787,0.2635,27997.0,27995.0,0.00012]
[1680710475009,0.2635,27997.0,27991.0,0.19181006]
[1680710475010,0.4696,27996.0,27991.0,0.0216]
[1680710475232,0.0849,27992.0,27991.0,0.0216]
[1680710475445,0.08370136,27992.0,27991.0,0.0216]
[1680710475667,1.23151164,27992.0,27991.0,0.0216]
[1680710475891,1.23151164,27992.0,27988.0,0.0181]
[1680710475892,1.23133028,27992.0,27988.0,0.0181]
[1680710476125,0.43961056,27989.0,27988.0,0.0181]
[1680710476358,0.43961056,27989.0,27985.0,0.0215]
[1680710476359,2.34518542,27989.0,27985.0,0.0215]
[1680710476579,0.65381056,27986.0,27985.0,0.0215]
[1680710476821,0.42974656,27986.0,27985.0,0.42712679]
[1680710477035,0.42974656,27986.0,27985.0,0.02168]
[1680710477244,0.42974656,27986.0,27985.0,0.0215]
[1680710477245,0.50732637,27986.0,27985.0,0.0215]
[1680710477539,0.36542956,27986.0,27985.0,0.0215]
[1680710477775,1.07392956,27986.0,27985.0,0.0215]
[1680710478424,1.32465767,27986.0,27985.0,0.0215]
[1680710478872,1.31393867,27986.0,27985.0,0.0215]
[1680710479092,0.61393867,27986.0,27985.0,0.0215]
[1680710479300,0.62465767,27986.0,27985.0,0.0215]
[1680710479511,0.67640444,27986.0,27985.0,0.0215]
[1680710479732,0.65324012,27986.0,27985.0,0.0215]
[1680710480142,0.65660809,27986.0,27985.0,0.0215]
[1680710480357,0.1,27985.0,27976.0,0.0215]
[1680710480565,0.50510737,27984.0,27978.0,0.25535635]
[1680710480784,0.50528873,27984.0,27978.0,0.28304199]
[1680710481214,0.51600873,27984.0,27978.0,0.00145636]
[1680710481425,0.51582737,27984.0,27978.0,0.00145636]
[1680710481851,0.1,27983.0,27978.0,0.00145636]
[1680710482072,0.00018136,27985.0,27980.0,0.00719002]
[1680710482289,0.35471056,27984.0,27978.0,0.08595636]
[1680710482513,0.49660737,27984.0,27980.0,0.45648441]
[1680710482730,0.35489192,27984.0,27981.0,0.19174578]
[1680710482941,0.35489192,27984.0,27982.0,0.39620876]
[1680710483152,0.35489192,27984.0,27980.0,0.40022752]
[1680710483370,0.00018136,27984.0,27980.0,0.04124295]
[1680710483573,0.40210847,27987.0,27978.0,0.097102]
[1680710483819,0.49660737,27986.0,27978.0,0.097102]
[1680710484055,0.00018136,27986.0,27983.0,0.0851]
[1680710484273,0.00018136,27989.0,27983.0,0.0851]
[1680710484695,0.00018136,27990.0,27983.0,0.0851]
[1680710484919,0.41667308,27991.0,27988.0,0.0851]
[1680710484920,0.00018136,27991.0,27988.0,0.0851]
[1680710485181,0.00018136,27992.0,27990.0,0.0851]
[1680710485412,0.00018136,27993.0,27991.0,0.00851]
[1680710485627,0.00018136,27994.0,27991.0,0.00851]
[1680710485838,9e-05,27994.0,27992.0,0.39918271]
[1680710486063,0.00018136,27996.0,27992.0,0.009361]
[1680710486279,0.00018136,27997.0,27992.0,0.42516111]
[1680710486493,0.00018136,27997.0,27992.0,0.33439788]
[1680710486704,0.00018136,27997.0,27992.0,0.38213065]
[1680710486924,0.00018136,27997.0,27992.0,0.03821307]
[1680710487127,0.00018136,27997.0,27991.0,0.0851]
[1680710487577,0.00018136,27997.0,27991.0,0.35471056]
[1680710487798,0.41310753,28002.0,27996.0,0.0842]
[1680710488022,0.3779395,28001.0,27996.0,0.0842]
[1680710488228,0.00018136,28001.0,27999.0,0.0851]
[1680710488454,0.41572683,28002.0,27998.0,0.0842]
[1680710488676,0.41590819,28002.0,27998.0,0.0842]
[1680710489519,0.00018136,28002.0,27998.0,0.0842]
[1680710489728,0.36510589,28003.0,28000.0,0.0845]
[1680710489939,0.36528725,28003.0,28000.0,0.0845]
[1680710490167,0.36528725,28003.0,27998.0,0.009262]
[1680710490168,0.00018136,28003.0,28001.0,0.0851]
[1680710490370,0.36452097,28004.0,28001.0,0.09361]
[1680710490591,0.36470233,28004.0,28001.0,0.00851]
[1680710490807,0.33135392,28003.0,28001.0,0.00851]
[1680710491034,0.33135392,28003.0,28002.0,0.37614865]
[1680710491035,0.00018136,28003.0,28002.0,0.37614865]
[1680710491264,0.00018136,28003.0,28002.0,0.44777365]
[1680710491491,0.00018136,28007.0,28002.0,0.44777365]
[1680710491711,0.3196063,28007.0,28003.0,0.13072837]
[1680710492792,0.35471056,28011.0,28003.0,0.13090837]
[1680710492793,0.34070908,28009.0,28003.0,0.13090837]
[1680710493031,0.34049908,28009.0,28003.0,0.0851]
[1680710493675,0.40786131,28008.0,28003.0,0.16574232]
[1680710493904,0.35666907,28008.0,28003.0,0.0845]
[1680710494113,0.35666907,28008.0,28004.0,0.00845]
[1680710494346,0.35666907,28008.0,28005.0,0.0851]
[1680710494551,0.35666907,28008.0,28003.0,0.0849]
[1680710494552,0.00021,28008.0,28003.0,0.0849]
[1680710494759,0.14189681,28008.0,28004.0,0.00849]
[1680710494965,0.00021,28008.0,28004.0,0.00849]
[1680710495166,0.045231,28010.0,28004.0,0.00849]
[1680710495390,0.047181,28009.0,28004.0,0.00849]
[1680710495604,0.00021,28009.0,28005.0,0.009339]
[1680710496231,0.36159112,28008.0,28005.0,0.009339]
[1680710496454,0.36180112,28008.0,28005.0,0.009339]
[1680710497130,0.36180112,28008.0,28004.0,0.23999936]
[1680710497982,0.36180112,28008.0,28004.0,0.32449936]
[1680710498793,0.00021,28008.0,28006.0,0.0845]
[1680710499015,0.00021,28008.0,28006.0,0.11338153]
[1680710499254,0.00021,28008.0,28006.0,0.0845]
[1680710499435,0.41277983,28007.0,28006.0,0.0845]
[1680710499664,0.41277983,28007.0,28004.0,0.0851]
[1680710499665,0.41298983,28007.0,28004.0,0.0851]
[1680710500118,0.00021,28007.0,28004.0,0.26540878]
[1680710500314,0.36124891,28009.0,28005.0,0.19553388]
[1680710500434,0.40299475,28008.0,28005.0,0.28013388]
[1680710500677,0.00021,28008.0,28006.0,0.03421638]
[1680710501330,0.41904585,28011.0,28007.0,0.23851393]
[1680710501535,0.41904585,28011.0,28007.0,0.22517293]
[1680710501747,0.41725516,28010.0,28007.0,0.22517293]
[1680710501974,0.41746516,28010.0,28008.0,0.02251729]
[1680710502183,0.33052957,28009.0,28008.0,0.02251729]
[1680710502363,0.33073957,28009.0,28008.0,0.02251729]
[1680710502780,0.34144957,28009.0,28008.0,0.02251729]
[1680710503201,0.00021,28009.0,28008.0,0.20523529]
[1680710503423,0.42389693,28011.0,28008.0,0.20523529]
[1680710503647,0.42389693,28011.0,28010.0,0.0847]
[1680710504403,0.00021,28011.0,28010.0,0.098132]